bitfinex/quotes_BTCUSD_20250730
["timestamp","ask_amount","ask_price","bid_price","bid_amount"]
[1753838787849,1.30027792,117760.0,117750.0,0.06192816]
[1753838789896,5.40994592,117760.0,117750.0,0.06192816]
[1753838790524,5.38447133,117760.0,117750.0,0.06192816]
[1753838790763,5.28419403,117760.0,117750.0,0.06192816]
[1753838790973,5.29268544,117760.0,117750.0,0.06192816]
[1753838791414,5.28419403,117760.0,117750.0,0.06192816]
[1753838791817,5.29268537,117760.0,117750.0,0.06192816]
[1753838792888,5.30117685,117760.0,117750.0,0.06192816]
[1753838793120,5.29268537,117760.0,117750.0,0.06192816]
[1753838793601,5.31816018,117760.0,117750.0,0.06192816]
[1753838793820,5.41913748,117760.0,117750.0,0.06192816]
[1753838794046,5.58048366,117760.0,117750.0,4.856e-05]
[1753838794281,5.57199225,117760.0,117750.0,4.856e-05]
[1753838794469,5.57199225,117760.0,117750.0,0.01492816]
[1753838796917,5.57199225,117760.0,117750.0,4.856e-05]
[1753838797129,5.56350062,117760.0,117750.0,4.856e-05]
[1753838798172,5.39366367,117760.0,117750.0,0.01492816]
[1753838798453,5.39366367,117760.0,117750.0,4.856e-05]
[1753838798573,5.39366367,117760.0,117750.0,0.01492816]
[1753838799447,5.56350062,117760.0,117750.0,4.856e-05]
[1753838799690,5.56350062,117760.0,117750.0,0.01492816]
[1753838799860,5.56350062,117760.0,117750.0,4.856e-05]
[1753838801239,1.45383262,117760.0,117750.0,4.856e-05]
[1753838801409,5.56350062,117760.0,117750.0,4.856e-05]
[1753838802448,5.63948615,117760.0,117750.0,4.856e-05]
[1753838802653,5.94301907,117760.0,117750.0,4.856e-05]
[1753838803093,5.63099431,117760.0,117750.0,4.856e-05]
[1753838803450,5.31896955,117760.0,117750.0,0.01492816]
[1753838803622,5.63099431,117760.0,117750.0,0.01492816]
[1753838804313,6.07469431,117760.0,117750.0,0.01492816]
[1753838805211,6.07469431,117760.0,117750.0,4.856e-05]
[1753838806774,6.07469431,117760.0,117750.0,0.01492816]
[1753838806983,5.99021701,117760.0,117750.0,0.01492816]
[1753838807438,5.99021701,117760.0,117750.0,4.856e-05]
[1753838807652,5.69517557,117760.0,117750.0,0.01492816]
[1753838807839,5.98878033,117760.0,117750.0,0.01492816]
[1753838808954,6.07054588,117760.0,117750.0,0.01492816]
[1753838810757,5.80264295,117760.0,117750.0,0.01492816]
[1753838810983,5.364378,117760.0,117750.0,0.12169816]
[1753838811602,5.3813606,117760.0,117750.0,0.12169816]
[1753838811808,5.364378,117760.0,117750.0,0.12169816]
[1753838812899,5.37286927,117760.0,117750.0,0.12169816]
[1753838813305,5.46583805,117760.0,117750.0,0.12169816]
[1753838813723,5.45734657,117760.0,117750.0,0.12169816]
[1753838813929,1.35617005,117760.0,117750.0,0.12169816]
[1753838814358,5.46583805,117760.0,117750.0,0.12169816]
[1753838814710,5.45734657,117760.0,117750.0,0.12169816]
[1753838814924,5.46583798,117760.0,117750.0,0.12169816]
[1753838815168,5.77786274,117760.0,117750.0,0.12169816]
[1753838815593,5.37286927,117760.0,117750.0,0.12169816]
[1753838816663,5.364378,117760.0,117750.0,0.12169816]
[1753838816847,5.234058,117760.0,117750.0,0.12169816]
[1753838817058,1.12439,117760.0,117750.0,0.51820022]
[1753838817203,0.78439,117760.0,117750.0,0.51820022]
[1753838818497,0.34069,117760.0,117750.0,0.51820022]
[1753838820858,0.34069,117760.0,117750.0,0.20617546]
[1753838821075,0.34069,117760.0,117750.0,0.33649546]
[1753838821558,0.65469476,117760.0,117750.0,0.12169816]
[1753838821803,0.65469476,117760.0,117750.0,0.25201816]
[1753838822023,0.34267,117760.0,117750.0,0.25201816]
[1753838823318,0.34069,117760.0,117750.0,0.25201816]
[1753838823535,0.34069,117760.0,117750.0,0.12169816]
[1753838824625,0.34069,117760.0,117750.0,0.10681856]
[1753838825074,0.34069,117760.0,117750.0,0.12169816]
[1753838829415,0.34069,117760.0,117750.0,0.10681856]
[1753838829645,0.34267,117760.0,117750.0,0.10681856]
[1753838830074,0.34267,117760.0,117750.0,0.12169816]
[1753838831658,0.34069,117760.0,117750.0,0.12169816]
[1753838833030,0.34069,117760.0,117750.0,0.43372292]
[1753838834134,0.34069,117760.0,117750.0,0.12169816]
[1753838838535,0.12547299,117760.0,117750.0,0.12169816]
[1753838838754,0.12547299,117760.0,117750.0,0.43372292]
[1753838839611,0.12547299,117760.0,117750.0,0.12169816]
[1753838846653,0.12547299,117760.0,117750.0,0.10681856]
[1753838846900,0.12745299,117760.0,117750.0,0.10681856]
[1753838847123,0.83624382,117760.0,117750.0,0.06244856]
[1753838847332,0.91893939,117760.0,117750.0,0.19220816]
[1753838847540,0.82118035,117760.0,117750.0,0.19220816]
[1753838847745,0.82967198,117760.0,117750.0,0.19220816]
[1753838847952,0.83624368,117760.0,117750.0,0.19220816]
[1753838848801,0.84473552,117760.0,117750.0,0.19220816]
[1753838849191,0.84473552,117760.0,117750.0,0.06192816]
[1753838849960,0.84473545,117760.0,117750.0,0.06192816]
[1753838850157,0.82775198,117760.0,117750.0,0.06192816]
[1753838850372,0.83624375,117760.0,117750.0,0.06192816]
[1753838851423,0.83624368,117760.0,117750.0,0.06192816]
[1753838852222,0.92072098,117760.0,117750.0,0.06192816]
[1753838852652,0.92921282,117760.0,117750.0,0.06192816]
[1753838853065,0.92072098,117760.0,117750.0,0.06192816]
[1753838853470,0.60869622,117760.0,117750.0,0.06192816]
[1753838853947,0.52421892,117760.0,117750.0,0.06192816]
[1753838854150,0.69405587,117760.0,117750.0,0.06192816]
[1753838854382,0.99758944,117760.0,117750.0,0.06192816]
[1753838855092,0.82775249,117760.0,117750.0,0.06192816]
[1753838855265,4.93742049,117760.0,117750.0,0.07732816]
[1753838855483,4.6338875,117760.0,117750.0,0.07732816]
[1753838855685,4.7183648,117760.0,117750.0,0.07732816]
[1753838857415,4.61690403,117760.0,117750.0,0.07732816]
[1753838857624,4.59410403,117760.0,117750.0,0.10060816]
[1753838859503,4.57712099,117760.0,117750.0,0.10060816]
[1753838859737,0.46745299,117760.0,117750.0,0.12121816]
[1753838859977,0.46547299,117760.0,117750.0,0.51772022]
[1753838860191,0.12547299,117760.0,117750.0,0.51772022]
[1753838861082,0.12547299,117760.0,117750.0,0.49444022]
[1753838866041,0.12547299,117760.0,117750.0,0.51877022]
[1753838871678,0.12547299,117760.0,117750.0,0.49444022]
[1753838871879,0.12547299,117760.0,117750.0,0.51877022]
[1753838888791,0.12547299,117760.0,117750.0,0.44077417]
[1753838889833,0.12547299,117760.0,117750.0,0.20674546]
[1753838890036,0.12547299,117760.0,117750.0,0.44077417]
[1753838891588,0.12547299,117760.0,117750.0,0.20674546]
[1753838891810,0.12547299,117760.0,117750.0,0.44077417]
[1753838893563,0.12547299,117760.0,117750.0,0.20674546]
[1753838893773,0.12547299,117760.0,117750.0,0.44077417]
[1753838895121,0.12547299,117760.0,117750.0,0.20674546]
[1753838895328,0.12547299,117760.0,117750.0,0.44077417]
[1753838898258,0.12547299,117760.0,117750.0,0.20674546]
[1753838898677,0.12547299,117760.0,117750.0,0.44077417]
[1753838907413,0.12547299,117760.0,117750.0,0.20674546]
[1753838907645,0.3842517,117760.0,117750.0,0.14640546]
[1753838907902,0.4024717,117760.0,117750.0,0.26172586]
[1753838908115,0.16844299,117760.0,117750.0,0.27660546]
[1753838908337,0.12745299,117760.0,117750.0,0.51063417]
[1753838908560,0.12745299,117760.0,117750.0,0.55048417]
[1753838908782,0.12745299,117760.0,117750.0,0.55350417]
[1753838909912,0.12745299,117760.0,117750.0,0.55551417]
[1753838910127,0.12745299,117760.0,117750.0,0.57151417]
[1753838911478,0.12745299,117760.0,117750.0,0.55551417]
[1753838911707,0.12745299,117760.0,117750.0,0.55350417]
[1753838912589,0.12745299,117760.0,117750.0,0.53740417]
[1753838912794,0.12745299,117760.0,117750.0,0.53438417]
[1753838913506,0.12745299,117760.0,117750.0,0.53740417]
[1753838913712,0.12745299,117760.0,117750.0,0.55300417]
[1753838914617,0.12745299,117760.0,117750.0,0.55501417]
[1753838919003,0.54266082,117760.0,117750.0,0.06192816]
[1753838919227,0.54266082,117760.0,117750.0,4.856e-05]
[1753838919228,5.69608508,117760.0,117750.0,4.856e-05]
[1753838919482,5.46205637,117760.0,117750.0,4.856e-05]
[1753838919700,5.46205637,117760.0,117750.0,0.01492816]
[1753838920350,5.46205637,117760.0,117750.0,4.856e-05]
[1753838920561,5.46205637,117760.0,117750.0,0.01492816]
[1753838921027,5.30625039,117760.0,117750.0,0.01492816]
[1753838922135,1.19658239,117760.0,117750.0,0.01492816]
[1753838922346,5.30625039,117760.0,117750.0,0.01492816]
[1753838923408,5.61850183,117760.0,117750.0,0.01492816]
[1753838923822,5.30625039,117760.0,117750.0,0.01492816]
[1753838925959,4.86383895,117760.0,117750.0,0.01492816]
[1753838926169,1.19658239,117760.0,117750.0,0.01492816]
[1753838926362,5.30625039,117760.0,117750.0,0.01492816]
[1753838926782,1.19658239,117760.0,117750.0,0.01492816]
[1753838926997,5.30625039,117760.0,117750.0,0.01492816]
[1753838927415,4.99399895,117760.0,117750.0,0.01492816]
[1753838927838,5.30625039,117760.0,117750.0,0.01492816]
[1753838928047,5.29775891,117760.0,117750.0,0.01492816]
[1753838928525,4.74124692,117760.0,117750.0,0.09101816]
[1753838929188,5.2229527,117760.0,117750.0,0.08561816]
[1753838929396,5.2229527,117760.0,117750.0,0.06192816]
[1753838929615,5.2457527,117760.0,117750.0,0.06192816]
[1753838930262,5.33023,117760.0,117750.0,0.06192816]
[1753838931453,5.33955845,117760.0,117750.0,0.01492816]
[1753838931670,5.44148477,117760.0,117750.0,0.01492816]
[1753838932977,5.49254477,117760.0,117750.0,0.01492816]
[1753838933699,1.38287677,117760.0,117750.0,4.856e-05]
[1753838933921,5.84529767,117760.0,117750.0,4.856e-05]
[1753838935410,5.84429767,117760.0,117750.0,4.856e-05]
[1753838935626,5.82614421,117760.0,117750.0,4.856e-05]
[1753838936276,5.82814421,117760.0,117750.0,4.856e-05]
[1753838936686,5.83114421,117760.0,117750.0,4.856e-05]
[1753838937998,5.80879621,117760.0,117750.0,4.856e-05]
[1753838938683,5.84929767,117760.0,117750.0,4.856e-05]
[1753838938903,5.87059215,117760.0,117750.0,4.856e-05]
[1753838940506,5.83009069,117760.0,117750.0,4.856e-05]
[1753838943733,5.82621372,117760.0,117750.0,4.856e-05]
[1753838943946,5.80341372,117760.0,117750.0,0.02373856]
[1753838944700,5.63751372,117760.0,117750.0,0.02373856]
[1753838945757,5.60761925,117760.0,117750.0,0.02913856]
[1753838945985,5.62301925,117760.0,117750.0,0.02913856]
[1753838946797,5.60761925,117760.0,117750.0,0.02913856]
[1753838946994,5.52116195,117760.0,117750.0,0.02913856]
[1753838947217,5.52116195,117760.0,117750.0,0.04533856]
[1753838947218,5.45265293,117760.0,117750.0,0.04533856]
[1753838947422,5.46114448,117760.0,117750.0,0.04533856]
[1753838947599,5.06441574,117760.0,117750.0,0.06163856]
[1753838947804,5.37666718,117760.0,117750.0,0.06163856]
[1753838948028,5.46114448,117760.0,117750.0,0.06163856]
[1753838949197,1.35147648,117760.0,117750.0,0.06163856]
[1753838949598,5.46114448,117760.0,117750.0,0.06163856]
[1753838949808,5.45265293,117760.0,117750.0,0.06163856]
[1753838950013,5.45265293,117760.0,117750.0,0.04533856]
[1753838953174,5.45265293,117760.0,117750.0,0.06093856]
[1753838957897,5.50374293,117760.0,117750.0,0.06093856]
[1753838958760,5.41926563,117760.0,117750.0,0.06093856]
[1753838960789,5.10701419,117760.0,117750.0,0.06093856]
[1753838961007,5.41926563,117760.0,117750.0,0.06093856]
[1753838961848,5.24942846,117760.0,117750.0,0.06093856]
[1753838962062,5.04698681,117760.0,117750.0,0.10793856]
[1753838962257,5.4597929,117760.0,117750.0,0.10793856]
[1753838962912,5.28431149,117760.0,117750.0,0.10793856]
[1753838963130,4.87999724,117760.0,117750.0,0.10793856]
[1753838963975,4.87999717,117760.0,117750.0,0.10793856]
[1753838964317,5.02999767,117760.0,117750.0,0.10793856]
[1753838964738,5.53952462,117760.0,117750.0,0.10793856]
[1753838965347,5.52254158,117760.0,117750.0,0.10793856]
[1753838965561,5.60701888,117760.0,117750.0,0.10793856]
[1753838966222,5.60899888,117760.0,117750.0,0.10793856]
[1753838968273,5.43916164,117760.0,117750.0,0.10793856]
[1753838968525,5.60899859,117760.0,117750.0,0.10793856]
[1753838968958,5.60701859,117760.0,117750.0,0.10793856]
[1753838969177,4.8904529,117760.0,117750.0,0.10793856]
[1753838969386,5.20270434,117760.0,117750.0,0.10793856]
[1753838970021,5.37254129,117760.0,117750.0,0.10793856]
[1753838975397,1.26287329,117760.0,117750.0,0.10793856]
[1753838975597,5.37254129,117760.0,117750.0,0.10793856]
[1753838975797,5.45701859,117760.0,117750.0,0.10793856]
[1753838975991,5.20270434,117760.0,117750.0,0.10793856]
[1753838976197,5.37254129,117760.0,117750.0,0.10793856]
[1753838977099,4.75184092,117760.0,117750.0,0.10793856]
[1753838977312,4.454358,117760.0,117750.0,0.4350696]
[1753838977518,4.584438,117760.0,117750.0,0.4350696]
[1753838977742,4.924438,117760.0,117750.0,0.12281816]
[1753838985485,4.584438,117760.0,117750.0,0.12281816]
[1753838986133,4.581438,117760.0,117750.0,0.12281816]
[1753838986561,4.583438,117760.0,117750.0,0.12281816]
[1753838988458,4.453358,117760.0,117750.0,0.4350696]
[1753838988666,0.34369,117760.0,117750.0,0.5195469]
[1753838988872,0.34369,117760.0,117750.0,0.6495869]
[1753838989350,0.33969,117760.0,117750.0,0.6495869]
[1753838989789,0.33969,117760.0,117750.0,0.6525869]
[1753839001185,0.33969,117760.0,117750.0,0.5225469]
[1753839001407,0.67683144,117760.0,117750.0,0.24932586]
[1753839001629,0.36639,117760.0,117750.0,0.21184856]
[1753839001854,0.67864144,117760.0,117750.0,0.22672816]
[1753839002042,0.36639,117760.0,117750.0,0.22672816]
[1753839002509,0.34178,117760.0,117750.0,0.25105816]
[1753839003169,0.34178,117760.0,117750.0,0.25634816]
[1753839003403,0.33969,117760.0,117750.0,0.25634816]
[1753839003680,0.33969,117760.0,117750.0,0.6530769]
[1753839004778,0.33969,117760.0,117750.0,0.5230769]
[1753839005052,0.34167,117760.0,117750.0,0.20868546]
[1753839005274,0.36447,117760.0,117750.0,0.21184856]
[1753839005498,0.37488119,117760.0,117750.0,0.19624856]
[1753839005924,0.36447,117760.0,117750.0,0.21112816]
[1753839006136,0.34167,117760.0,117750.0,0.25095816]
[1753839006995,0.33969,117760.0,117750.0,0.25624816]
[1753839007429,0.33969,117760.0,117750.0,0.25424816]
[1753839008273,0.35016119,117760.0,117750.0,0.09562816]
[1753839008491,0.36639,117760.0,117750.0,0.19420856]
[1753839008699,0.36447,117760.0,117750.0,0.22548816]
[1753839009708,0.36639,117760.0,117750.0,0.17800856]
[1753839009909,0.36639,117760.0,117750.0,0.20898816]
[1753839010191,0.36447,117760.0,117750.0,0.22468816]
[1753839011233,0.34167,117760.0,117750.0,0.24901816]
[1753839013412,0.36447,117760.0,117750.0,0.24901816]
[1753839013589,0.36447,117760.0,117750.0,0.22468816]
[1753839014643,0.34167,117760.0,117750.0,0.24879816]
[1753839015898,0.34167,117760.0,117750.0,0.25186816]
[1753839017893,0.34167,117760.0,117750.0,0.25397816]
[1753839018344,0.33969,117760.0,117750.0,0.6507069]
[1753839018982,0.33969,117760.0,117750.0,0.33845546]
[1753839020850,0.33969,117760.0,117750.0,0.6507069]
[1753839022840,0.33969,117760.0,117750.0,0.33845546]
[1753839023054,0.34167,117760.0,117750.0,0.33845546]
[1753839023255,0.68508263,117760.0,117750.0,0.07902816]
[1753839023456,0.69357397,117760.0,117750.0,0.19288816]
[1753839023718,0.68508263,117760.0,117750.0,0.19288816]
[1753839023923,0.67659144,117760.0,117750.0,0.20868816]
[1753839024137,0.36434,117760.0,117750.0,0.20868816]
[1753839024306,0.34167,117760.0,117750.0,0.23279816]
[1753839025166,0.37283134,117760.0,117750.0,0.20868816]
[1753839025378,0.37283134,117760.0,117750.0,0.19288816]
[1753839025784,0.37283127,117760.0,117750.0,0.19288816]
[1753839026421,0.36434,117760.0,117750.0,0.19288816]
[1753839026643,0.36434,117760.0,117750.0,0.20908816]
[1753839027599,0.37283127,117760.0,117750.0,0.20908816]
[1753839027821,0.36434,117760.0,117750.0,0.20908816]
[1753839028282,0.34167,117760.0,117750.0,0.24919816]
[1753839028534,0.34167,117760.0,117750.0,0.25437816]
[1753839029611,0.34167,117760.0,117750.0,0.23626816]
[1753839029849,0.34167,117760.0,117750.0,0.20908816]
[1753839029850,0.35865268,117760.0,117750.0,0.20908816]
[1753839030126,0.38132268,117760.0,117750.0,0.20908816]
[1753839030374,5.07587687,117760.0,117750.0,0.06292816]
[1753839030614,5.87348831,117760.0,117750.0,0.01592816]
[1753839030842,5.56123687,117760.0,117750.0,0.06292816]
[1753839031061,5.38290801,117760.0,117750.0,0.06292816]
[1753839031299,5.40147437,117760.0,117750.0,0.06292816]
[1753839031528,5.55432871,117760.0,117750.0,0.06292816]
[1753839031994,5.56343716,117760.0,117750.0,0.06292816]
[1753839032860,5.54683716,117760.0,117750.0,0.06292816]
[1753839033091,5.38549155,117760.0,117750.0,0.06292816]
[1753839033968,5.38549155,117760.0,117750.0,0.06192816]
[1753839035183,5.38357155,117760.0,117750.0,0.06192816]
[1753839035386,5.34450148,117760.0,117750.0,0.10193816]
[1753839035814,5.36717148,117760.0,117750.0,0.06192816]
[1753839036482,4.9392806,117760.0,117750.0,0.10213816]
[1753839036695,4.9392806,117760.0,117750.0,0.10520816]
[1753839037357,5.25153197,117760.0,117750.0,0.10520816]
[1753839037816,4.790358,117760.0,117750.0,0.12281816]
[1753839038665,4.789358,117760.0,117750.0,0.12281816]
[1753839039626,0.33969,117760.0,117750.0,0.5195469]
[1753839040580,0.33969,117760.0,117750.0,0.5205469]
[1753839041712,0.33969,117760.0,117750.0,0.5215469]
[1753839041910,0.33969,117760.0,117750.0,0.5205469]
[1753839042360,0.33969,117760.0,117750.0,0.5225469]
[1753839042997,0.33969,117760.0,117750.0,0.21029546]
[1753839046119,0.33969,117760.0,117750.0,0.5225469]
[1753839051010,0.33969,117760.0,117750.0,0.34025546]
[1753839051234,0.34167,117760.0,117750.0,0.34025546]
[1753839051894,0.34167,117760.0,117750.0,0.33507546]
[1753839052131,0.70343263,117760.0,117750.0,0.18000856]
[1753839052322,0.68713263,117760.0,117750.0,0.18000856]
[1753839052562,0.68713263,117760.0,117750.0,0.19488816]
[1753839052781,0.68521263,117760.0,117750.0,0.19488816]
[1753839053020,0.6937039,117760.0,117750.0,0.18000856]
[1753839053247,0.71971531,117760.0,117750.0,0.18000856]
[1753839053479,0.39897246,117760.0,117750.0,0.18000856]
[1753839053720,0.67864144,117760.0,117750.0,0.18000856]
[1753839053912,0.6956239,117760.0,117750.0,0.19488816]
[1753839054584,0.6937039,117760.0,117750.0,0.19488816]
[1753839054837,0.67672144,117760.0,117750.0,0.18000856]
[1753839055061,0.67672144,117760.0,117750.0,0.24035816]
[1753839055062,0.33969,117760.0,117750.0,0.24035816]
[1753839055277,0.33969,117760.0,117750.0,0.25535816]
[1753839055713,0.34167,117760.0,117750.0,0.25535816]
[1753839056579,0.33969,117760.0,117750.0,0.33983546]
[1753839060503,0.33969,117760.0,117750.0,0.6520869]
[1753839066078,0.16129816,117760.0,117750.0,0.6520869]
[1753839068902,0.16129816,117760.0,117750.0,0.5221269]
[1753839069121,0.16129816,117760.0,117750.0,0.651611]
[1753839075539,0.16129816,117760.0,117750.0,0.33935956]
[1753839075749,0.16129816,117760.0,117750.0,0.651611]
[1753839080285,4.609668,117780.0,117770.0,0.0618796]
[1753839080513,0.00198,117780.0,117770.0,0.2762769]
[1753839080759,0.0198,117780.0,117770.0,0.2762769]
[1753839082055,0.02507,117780.0,117770.0,0.2762769]
[1753839083305,0.02607,117780.0,117770.0,0.2762769]
[1753839084369,0.50298,117780.0,117770.0,0.2995969]
[1753839084583,0.00298,117780.0,117770.0,0.3149969]
[1753839087480,0.50298,117780.0,117770.0,0.3149969]
[1753839087693,0.00298,117780.0,117770.0,0.3149969]
[1753839089839,0.00298,117780.0,117770.0,0.3182269]
[1753839091930,0.00298,117780.0,117770.0,0.3202269]
[1753839096378,0.35532126,117780.0,117770.0,0.2762769]
[1753839096606,4.46368944,117780.0,117770.0,0.2762769]
[1753839096802,4.44948919,117780.0,117770.0,0.2762769]
[1753839097003,4.44099944,117780.0,117770.0,0.1463569]
[1753839097602,4.4579793,117780.0,117770.0,0.1463569]
[1753839097804,4.4579793,117780.0,117770.0,0.0993569]
[1753839098002,4.4579793,117780.0,117770.0,0.0618796]
[1753839098003,4.46646927,117780.0,117770.0,0.0618796]
[1753839098262,4.58281683,117780.0,117760.0,0.15324]
[1753839098422,4.109668,117770.0,117760.0,0.2847173]
[1753839098627,0.00198,117770.0,117760.0,0.2377173]
[1753839098838,0.00198,117770.0,117760.0,0.2847173]
[1753839099039,0.01828,117770.0,117760.0,0.2847173]
[1753839099635,0.02677055,117770.0,117750.0,0.04275]
[1753839099866,0.62383266,117770.0,117760.0,0.047]
[1753839100102,1.04189147,117770.0,117760.0,0.047]
[1753839100535,1.04907147,117770.0,117760.0,0.047]
[1753839101402,1.07404197,117770.0,117760.0,0.047]
[1753839101618,5.18370997,117770.0,117760.0,0.0618796]
[1753839102256,5.18370997,117770.0,117760.0,0.0628796]
[1753839102681,5.18370997,117770.0,117760.0,0.0618796]
[1753839102931,5.01388744,117770.0,117760.0,0.0618796]
[1753839103160,4.95093848,117770.0,117760.0,0.0618796]
[1753839103382,4.96791957,117770.0,117760.0,0.0618796]
[1753839103599,4.47666704,117770.0,117760.0,0.0904296]
[1753839104066,4.60658704,117770.0,117760.0,0.0904296]
[1753839104294,4.61507759,117770.0,117760.0,0.0904296]
[1753839104518,4.62356828,117770.0,117760.0,0.0851996]
[1753839104735,4.95211972,117770.0,117760.0,0.0851996]
[1753839104953,5.13043316,117770.0,117760.0,0.0618796]
[1753839105171,5.24709151,117770.0,117760.0,0.0618796]
[1753839105383,0.37318347,117760.0,117750.0,0.0618796]
[1753839105599,4.8193358,117760.0,117750.0,0.0618796]
[1753839105816,4.8140658,117760.0,117750.0,0.0618796]
[1753839106033,4.79708204,117760.0,117750.0,0.0618796]
[1753839106252,4.47633919,117760.0,117750.0,0.0862196]
[1753839106461,4.79708197,117760.0,117750.0,0.0862196]
[1753839106898,4.80557345,117760.0,117750.0,0.0862196]
[1753839107114,4.81406508,117760.0,117750.0,0.0862196]
[1753839107320,4.80557345,117760.0,117750.0,0.0872196]
[1753839107962,4.79708197,117760.0,117750.0,0.0882196]
[1753839108489,4.78009944,117760.0,117750.0,0.0882196]
[1753839108700,4.13468704,117770.0,117760.0,0.047]
[1753839108906,4.13468704,117770.0,117760.0,0.1228196]
[1753839109332,0.02501904,117770.0,117760.0,0.1228196]
[1753839109544,4.10971654,117770.0,117760.0,0.2527396]
[1753839111077,4.854e-05,117770.0,117760.0,0.64946834]
[1753839113176,4.854e-05,117770.0,117760.0,0.65046834]
[1753839113393,4.854e-05,117770.0,117760.0,0.65246834]
[1753839120577,4.854e-05,117770.0,117760.0,0.3402169]
[1753839120721,4.854e-05,117770.0,117760.0,0.65246834]
[1753839120924,4.854e-05,117770.0,117760.0,0.3402169]
[1753839121125,4.854e-05,117770.0,117760.0,0.65246834]
[1753839122175,4.854e-05,117770.0,117760.0,0.3402169]
[1753839122386,4.854e-05,117770.0,117760.0,0.65246834]
[1753839122805,4.854e-05,117770.0,117760.0,0.3402169]
[1753839123028,4.854e-05,117770.0,117760.0,0.65246834]
[1753839135242,4.854e-05,117770.0,117760.0,0.96471978]
[1753839136222,4.854e-05,117770.0,117760.0,1.56748041]
[1753839136901,4.854e-05,117770.0,117760.0,1.59323537]
[1753839137187,4.854e-05,117770.0,117760.0,1.59223537]
[1753839137912,4.854e-05,117770.0,117760.0,1.56648041]
[1753839138677,4.854e-05,117770.0,117760.0,1.56948041]
[1753839138895,4.854e-05,117770.0,117760.0,2.20159695]
[1753839139108,4.854e-05,117770.0,117760.0,1.88634551]
[1753839139752,4.854e-05,117770.0,117760.0,1.89034551]
[1753839140186,4.854e-05,117770.0,117760.0,1.88634551]
[1753839140409,4.854e-05,117770.0,117760.0,1.62374551]
[1753839140624,0.015,117810.0,117800.0,0.0618796]
[1753839140841,0.01504857,117810.0,117800.0,0.64910834]
[1753839142460,0.03004857,117810.0,117800.0,0.65210834]
[1753839142689,0.03004857,117810.0,117800.0,0.96435978]
[1753839142901,0.03004857,117810.0,117800.0,0.96735978]
[1753839143626,0.03004857,117810.0,117800.0,0.65510834]
[1753839144066,0.03004857,117810.0,117800.0,0.96735978]
[1753839144534,0.03004857,117810.0,117800.0,0.65510834]
[1753839147611,0.03004857,117810.0,117800.0,0.65510834]
[1753839149697,0.01504857,117810.0,117800.0,0.65510834]
[1753839155989,0.01504857,117810.0,117800.0,0.66418406]
[1753839158388,0.01504857,117810.0,117800.0,0.9764355]
[1753839159056,0.01504857,117810.0,117800.0,1.17215276]
[1753839159717,0.01504857,117810.0,117800.0,1.1636638]
[1753839161191,0.01504857,117810.0,117800.0,0.99388452]
[1753839162795,0.01504857,117810.0,117800.0,1.1636638]
[1753839164040,0.01504857,117810.0,117800.0,0.99388452]
[1753839164278,0.01504857,117810.0,117800.0,1.5206415]
[1753839164520,0.01504857,117810.0,117800.0,1.57913017]
[1753839164759,0.01504857,117810.0,117800.0,1.58761862]
[1753839165262,0.01504857,117810.0,117800.0,1.63761862]
[1753839165533,0.01504857,117810.0,117800.0,1.58761862]
[1753839165761,0.01504857,117810.0,117800.0,1.63761862]
[1753839167803,0.01504857,117810.0,117800.0,1.58761862]
[1753839167994,0.01504857,117810.0,117800.0,1.90021862]
[1753839172274,0.0004,117820.0,117810.0,0.64710832]
[1753839172489,0.0004,117820.0,117810.0,1.21038706]
[1753839172705,0.0004,117820.0,117810.0,1.23500706]
[1753839173994,0.0004,117820.0,117810.0,1.49760706]
[1753839174639,0.0004,117820.0,117810.0,1.50060706]
[1753839174867,0.0004,117820.0,117810.0,1.51805608]
[1753839175095,0.0004,117820.0,117810.0,1.56505608]
[1753839175521,0.0004,117820.0,117810.0,1.57005608]
[1753839176664,0.0004,117820.0,117810.0,1.88230752]
[1753839178191,0.0004,117820.0,117810.0,1.87730752]
[1753839178408,0.0004,117820.0,117810.0,1.43721608]
[1753839178637,0.0004,117820.0,117810.0,1.56733608]
[1753839178846,0.0004,117820.0,117810.0,1.57333608]
[1753839179765,0.0004,117820.0,117810.0,1.57133608]
[1753839180209,0.0004,117820.0,117810.0,1.44721608]
[1753839180431,0.0004,117820.0,117810.0,1.57741608]
[1753839180896,0.0004,117820.0,117810.0,1.26516464]
[1753839181113,0.0004,117820.0,117810.0,1.57741608]
[1753839190646,0.0004,117820.0,117810.0,1.57733608]
[1753839196963,0.0004,117820.0,117810.0,1.78129608]
[1753839198556,0.0004,117820.0,117810.0,2.09354752]
[1753839201113,0.0004,117820.0,117810.0,1.78129608]
[1753839201333,0.0004,117820.0,117810.0,2.09354752]
[1753839201554,0.0004,117820.0,117810.0,1.78129608]
[1753839202971,0.0004,117820.0,117810.0,2.09354752]
[1753839203548,0.0004,117820.0,117810.0,2.19354752]
[1753839203976,0.03979,117870.0,117860.0,0.09629754]
[1753839204192,0.02527,117870.0,117860.0,0.78655594]
[1753839204396,0.02575591,117870.0,117860.0,0.7929192]
[1753839204600,0.02575591,117870.0,117860.0,0.78443478]
[1753839204819,0.02575591,117870.0,117860.0,0.80140369]
[1753839205024,0.02575591,117870.0,117860.0,0.79291913]
[1753839205234,0.01005591,117870.0,117860.0,0.79291913]
[1753839205451,0.02725591,117870.0,117860.0,0.29400592]
[1753839205658,0.02725591,117870.0,117860.0,0.61544666]
[1753839205858,0.04275591,117870.0,117860.0,0.60625736]
[1753839206062,0.04275591,117870.0,117860.0,0.47605736]
[1753839206287,0.04275591,117870.0,117860.0,0.29500592]
[1753839206501,0.04275591,117870.0,117860.0,0.60725736]
[1753839206910,0.04275591,117870.0,117860.0,0.29400592]
[1753839207130,0.04275591,117870.0,117860.0,0.60625736]
[1753839207336,0.04275591,117870.0,117860.0,0.60825736]
[1753839207559,0.04275591,117870.0,117860.0,0.61727972]
[1753839207767,0.04175591,117870.0,117860.0,0.60825736]
[1753839208490,0.04175591,117870.0,117860.0,0.29600592]
[1753839208709,0.04175591,117870.0,117860.0,0.60825736]
[1753839210252,0.02625591,117870.0,117860.0,0.60825736]
[1753839210465,0.02098591,117870.0,117860.0,0.60825736]
[1753839210880,0.01906591,117870.0,117860.0,0.60825736]
[1753839211953,0.01906591,117870.0,117860.0,0.29600592]
[1753839212181,0.01906591,117870.0,117860.0,0.61733149]
[1753839212396,0.01906591,117870.0,117860.0,0.64031149]
[1753839212833,0.00286591,117870.0,117860.0,1.15000434]
[1753839213038,0.00286591,117870.0,117860.0,1.17765898]
[1753839213463,0.00088591,117870.0,117860.0,1.17980898]
[1753839213704,0.00088591,117870.0,117860.0,0.95841059]
[1753839213931,0.00088591,117870.0,117860.0,1.27066203]
[1753839215441,0.00088591,117870.0,117860.0,1.53286203]
[1753839223158,0.68358212,117930.0,117920.0,0.14425695]
[1753839224825,0.67858212,117930.0,117920.0,0.14425695]
[1753839225049,0.36633068,117930.0,117920.0,0.14425695]
[1753839225302,0.68258212,117930.0,117920.0,0.14425695]
[1753839225545,0.68058212,117930.0,117920.0,0.14425695]
[1753839225790,0.36833068,117930.0,117920.0,0.14425695]
[1753839226033,0.68058212,117930.0,117920.0,0.14425695]